Cogmind - Beta 13 @@@ ROGUE MODE // 2024.06.25 @ 18:50:35 Player: Berg Result: Destroyed by B-75 Beast with Magnetic Acceleration Cannon Performance ------------- Evolutions (4) 2000 Regions Visited (7) 1400 Robots Destroyed (81) 405 Value Destroyed (2642) 2642 Prototype IDs (3) 60 Alien Tech Used (0) 0 Bonus (548) 548 TOTAL SCORE: 7055 Bonus ------- High Alert Combat Kills 60 Follower Combat Kills 99 Entered DSFs 500 Friendly Fire -111 Cogmind --------- Core Integrity 0/850 Matter 173/300 Energy 100/100 System Corruption 4% Temperature Cool (12) Movement Core (50) Location -6/Factory Parts ------- > --- POWER (2) -------- (None) > --- PROPULSION (3) --- (None) > --- UTILITY (7) ------ (None) > --- WEAPON (3) ------- (None) > --- INVENTORY (5) ---- Sensor Array Signal Interpreter Hardened Light Armor Plating Magnetic Acceleration Cannon Precision Rocket Launcher Peak State ------------ > --- POWER ------------ Light Nuclear Core Micro Nuclear Core > --- PROPULSION ------- Improved Carbon-fiber Leg Improved Carbon-fiber Leg Flexi-carbon Leg > --- UTILITY ---------- Medium Storage Unit Machine Analyzer Signal Interpreter Target Analyzer Phase Shifter Hacking Suite Improved Field Recycling Unit > --- WEAPON ----------- Gauss Rifle Heavy Machine Gun Heavy Flak Cannon > --- INVENTORY -------- Carbon-fiber Leg Improved Carbon-fiber Leg Improved Carbon-fiber Leg Improved Carbon-fiber Leg Sensor Array Signal Interpreter Hardened Light Armor Plating Magnetic Acceleration Cannon Precision Rocket Launcher [Rating: 57] Favorites ----------- Power Heavy Ion Engine Engine Heavy Ion Engine Power Core Light Nuclear Core Propulsion Improved Carbon-fiber Leg Leg Improved Carbon-fiber Leg Wheel Wheel Hover Unit Hover Unit Flight Unit Flight Unit Utility Sensor Array Device Sensor Array Storage Medium Storage Unit Processor Signal Interpreter Hackware Hacking Suite Protection Light Armor Plating Weapon High-powered Shotgun Energy Gun Small Laser Energy Cannon Particle Cannon Ballistic Gun High-powered Shotgun Ballistic Cannon Flak Cannon Launcher Precision Rocket Launcher Special Weapon Mining Laser Slashing Weapon Katana Build | -11 -10 -9 -9 -8 -7 -7 -6 ------- Run | Yrd Mat Mat Sto Mat Fac DSF Fac Slots Evolved 8 | . . 2 . 2 2 . 2 Power 1 | . . . . . 1 . . Propulsion 1 | . . 1 . . . . . Utility 5 | . . 1 . 2 1 . 1 Weapon 1 | . . . . . . . 1 Parts Attached 118 | 6 12 6 49 20 . 7 18 Power 14 | 1 2 . 6 2 . 1 2 Engine 11 | 1 2 . 5 2 . 1 . Core 3 | . . . 1 . . . 2 Reactor . | . . . . . . . . Propulsion 42 | 2 6 2 16 7 . 3 6 Treads . | . . . . . . . . Leg 14 | 2 . . . 3 . 3 6 Wheel 7 | . . . 6 1 . . . Hover 18 | . 6 2 7 3 . . . Flight 3 | . . . 3 . . . . Utility 28 | 1 2 3 9 7 . 3 3 Device 9 | . . 3 1 2 . 1 2 Storage 2 | 1 . . 1 . . . . Processor 8 | . 2 . 2 2 . 2 . Hackware 1 | . . . . . . . 1 Protection 8 | . . . 5 3 . . . Artifact . | . . . . . . . . Weapon 34 | 2 2 1 18 4 . . 7 Energy Gun 6 | 1 2 . 3 . . . . Energy Cannon 3 | . . . 3 . . . . Ballistic Gun 14 | 1 . . 6 3 . . 4 Ballistic Cannon 5 | . . . 2 1 . . 2 Launcher 2 | . . . 2 . . . . Special Weapon 3 | . . 1 2 . . . . Impact Weapon . | . . . . . . . . Slashing Weapon 1 | . . . . . . . 1 Piercing Weapon . | . . . . . . . . Special Melee Weapon . | . . . . . . . . Unidentified Prototypes 3 | . . . 3 . . . . Parts Lost 36 | . 2 . 14 2 . 4 14 Power 7 | . 1 . 2 1 . . 3 Propulsion 10 | . . . 3 . . . 7 Utility 9 | . . . 4 1 . 2 2 Weapon 10 | . 1 . 5 . . 2 2 Highest Loss Streak 10 | . 1 . 7 2 . 3 10 To Critical Strikes . | . . . . . . . . Average Slot Usage (%) 87 | . 80 63 84 98 84 87 91 Engine 8 | . 13 11 5 8 7 7 7 Core 2 | . . . 4 . . . 3 Leg 9 | . 3 . . 13 23 23 19 Wheel 2 | . . . 7 2 . . . Hover 8 | . 16 12 13 10 . . . Device 9 | . . 11 10 8 7 7 11 Storage 9 | . 14 11 11 9 7 7 5 Processor 11 | . 7 . 6 13 15 17 19 Hackware 1 | . . . . . . . 4 Protection 4 | . . . 4 12 7 6 . Energy Gun 4 | . 14 11 7 . . . . Ballistic Gun 8 | . 11 . 5 9 7 7 11 Ballistic Cannon 2 | . . . . 4 7 7 2 Launcher 1 | . . . 2 3 . . . Naked Turns 7 | . . . . . . . 7 Heaviest Build 52 | 11 11 13 38 39 31 36 52 Greatest Support 56 | 20 20 12 20 51 51 54 56 Greatest Overweight (x) 6 | 1 3 2 6 4 . . 1 Average Overweight (x) . | . . . . . . . . Largest Inventory Capacity 10 | 8 8 8 10 10 10 10 10 Average Capacity 9 | 7 8 8 8 10 10 10 9 Most Carried 10 | 4 8 8 10 10 10 10 10 Average Carried 8 | 2 7 6 6 9 10 9 9 Final Capacity 10 | 8 8 8 10 10 10 10 5 Final Carried 10 | 4 7 6 9 10 10 9 5 Class Distribution -------------------- 45% | Mutant 25% | Skirmisher 11% | Scavenger-Mutant 9% | Assassin 5% | Commander-Mutant Dominant Class ---------------- Mutant | -10/Materials Mutant | -9/Materials Mutant | -9/Storage Skirmisher | -8/Materials Skirmisher | -7/Factory Skirmisher | -7/DSF Assassin | -6/Factory Resources | -11 -10 -9 -9 -8 -7 -7 -6 ----------- Run | Yrd Mat Mat Sto Mat Fac DSF Fac Matter Collected 2215 | 197 227 . 767 482 . 96 446 Remotely . | . . . . . . . . Salvage Created 2335 | . 243 . 1221 358 . 96 417 Parts 154 | . 18 . 83 20 . 8 25 Haulers Intercepted 5 | . . . 3 2 . . . Recyclers Shooed 3 | . . . 1 . . . 2 Parts Field Recycled 12 | . . . . . . . 12 Retrieved Matter 193 | . . . . . . . 193 Parts Self-Destructed . | . . . . . . . . Prevented . | . . . . . . . . Kills | -11 -10 -9 -9 -8 -7 -7 -6 ------- Run | Yrd Mat Mat Sto Mat Fac DSF Fac Combat Hostiles Destroyed 60 | . 5 . 29 11 . 5 10 Melee 1 | . . . . . . . 1 Guns 25 | . 5 . 8 3 . 2 7 Cannons 15 | . . . 6 4 . 3 2 AOE 18 | . . . 14 4 . . . Classes Destroyed 15 | . 2 . 10 . . 1 2 Worker 3 | . . . 3 . . . . Builder 5 | . . . 4 1 . . . Hauler 5 | . . . 3 2 . . . Recycler 1 | . . . 1 . . . . Mechanic 2 | . . . 2 . . . . Operator 2 | . . . 1 1 . . . Watcher 3 | . 2 . 1 . . . . Swarmer 8 | . . . 4 . . 3 1 Grunt 31 | . 5 . 15 9 . . 2 Brawler 2 | . . . 2 . . . . Duelist 6 | . . . 3 . . . 3 Sentry 8 | . . . 5 2 . . 1 Specialist 2 | . . . . . . 2 . Hunter 1 | . . . . . . . 1 Programmer 2 | . . . . . . . 2 Best Kill Streak 22 | . 2 . 22 5 . 3 2 Combat Bots Only 14 | . 2 . 14 5 . 3 2 Max Kills in Single Turn 4 | . 1 . 4 2 . 1 1 Gunslinging . | . . . . . . . . Exploded 3 | . . . 3 1 . . . Melee 1 | . . . . . . . 1 Uniques/NPCs Destroyed . | . . . . . . . . Combat | -11 -10 -9 -9 -8 -7 -7 -6 -------- Run | Yrd Mat Mat Sto Mat Fac DSF Fac Hostile Shots Fired 556 | . 30 1 108 48 . 71 298 Missed 187 | . 7 . 22 9 . 19 130 Damage Taken 6317 | . 332 7 1578 780 . 910 2710 Core 1460 | . 52 . 330 83 . 135 860 Absorbed by Shields . | . . . . . . . . Core Remaining (%) 72 | 100 79 . 17 84 . 80 . Volleys Fired 222 | . 28 6 102 32 . 12 42 Largest 3 | . 2 1 2 2 . 2 3 Hottest 118 | . 80 100 118 69 . 69 109 Shots Fired 388 | . 51 6 158 60 . 24 89 Gun 257 | . 51 2 101 32 . 12 59 Cannon 107 | . . . 43 22 . 12 30 Launcher 16 | . . . 10 6 . . . Special 8 | . . 4 4 . . . . Kinetic 248 | . 21 . 60 54 . 24 89 Thermal 115 | . 28 6 81 . . . . Explosive 16 | . . . 10 6 . . . Electromagnetic 9 | . 2 . 7 . . . . Robot Hit Streak 16 | . 16 3 11 8 . 4 8 Robot Miss Streak 12 | . 3 . 3 7 . 9 12 Penetration Max 1 | . . . . . . . 1 Secondary Targets . | . . . . . . . . Shots Hit Robots 259 | . 37 2 91 45 . 17 67 Core Hits 188 | . 15 . 69 44 . 13 47 Critical Kills 1 | . . . . . . 1 . Critical Parts Destroyed 6 | . . . . 1 . . 5 Critical Strikes 10 | . . . 3 1 . 1 5 Burn 2 | . . . 2 . . . . Destroy 7 | . . . . 1 . 1 5 Blast 1 | . . . 1 . . . . Melee Attacks 5 | . . . . . . . 5 Impact . | . . . . . . . . Slashing 5 | . . . . . . . 5 Piercing . | . . . . . . . . Sneak Attacks 1 | . . . . . . . 1 Combat Hostiles . | . . . . . . . . Follow-up Attacks . | . . . . . . . . Damage Inflicted 6910 | . 475 22 2883 1652 . 312 1566 Guns 2743 | . 461 22 855 359 . 124 922 Cannons 1542 | . . . 505 384 . 188 465 Explosions 2409 | . . . 1507 902 . . . Melee 160 | . . . . . . . 160 Ramming 56 | . 14 . 16 7 . . 19 Kinetic 3348 | . 240 . 666 743 . 312 1387 Thermal 880 | . 221 22 637 . . . . Explosive 2409 | . . . 1507 902 . . . Electromagnetic 57 | . . . 57 . . . . Impact . | . . . . . . . . Slashing 160 | . . . . . . . 160 Piercing . | . . . . . . . . Highest Corruption 6 | . . . 6 . . . 4 Average Corruption 5 | . . . 5 . . . 3 Corruption Purged . | . . . . . . . . Corruption Blocked . | . . . . . . . . Effects 9 | . . . 9 . . . . Message Errors 2 | . . . 2 . . . . Matter Fused 2 | . . . 2 . . . . Heat Flow Errors 1 | . . . 1 . . . . Energy Discharges 1 | . . . 1 . . . . Data Loss (minor) 1 | . . . 1 . . . . Data Loss (major) 1 | . . . 1 . . . . Misfires 1 | . . . 1 . . . . Overload Shots . | . . . . . . . . Overflow Damage 84 | . . . 23 55 . . 6 Projectiles . | . . . . . . . . Explosions 78 | . . . 23 55 . . . Melee 6 | . . . . . . . 6 Knockbacks 48 | . 1 . 6 18 . 5 18 Impact 1 | . 1 . . . . . . Kinetic 40 | . . . 4 16 . 5 15 Secondary 7 | . . . 2 2 . . 3 Self-Inflicted Damage 282 | . 7 . 161 114 . . . Shots 5 | . . . 4 1 . . . Rammed 5 | . 1 . 3 1 . . . Targets Rammed 7 | . 1 . 3 1 . . 2 Kicked 2 | . . . . . . . 2 Crushed . | . . . . . . . . Highest Temperature 510 | . 84 12 510 138 . . 132 Average Temperature 75 | . 37 7 103 55 . . 37 Received Heat Transfer 1254 | . 171 . 366 297 . . 420 Effects 8 | . . . 8 . . . . Shutdowns 2 | . . . 2 . . . . Energy Bleed 1 | . . . 1 . . . . Interference 3 | . . . 3 . . . . Short Circuit 1 | . . . 1 . . . . Damage (major) 1 | . . . 1 . . . . Siege Activations . | . . . . . . . . Robots Corrupted . | . . . . . . . . Combat Hostiles . | . . . . . . . . Parts Fried . | . . . . . . . . Impact Corruptions . | . . . . . . . . Robots Melted 1 | . . . 1 . . . . Combat Hostiles 1 | . . . 1 . . . . Parts Melted 5 | . . . 5 . . . . Heat Transferred 2264 | . 475 50 1739 . . . . Parts Sabotaged 4 | . . . . . . . 4 Parts Stolen . | . . . . . . . . Parts Stripped . | . . . . . . . . Power Chain Reactions . | . . . . . . . . Alert | -11 -10 -9 -9 -8 -7 -7 -6 ------- Run | Yrd Mat Mat Sto Mat Fac DSF Fac Peak Influence 614 | . 169 35 614 424 70 189 194 Initial 259 | . . 1 14 259 65 49 83 Average 149 | . 60 25 239 192 65 86 76 Maximum Alert Level 2 | . . . 2 2 . . . Low Security (%) 73 | 100 100 100 55 41 100 100 100 Level 1 18 | . . . 24 49 . . . Level 2 8 | . . . 19 8 . . . Level 3 . | . . . . . . . . Level 4 . | . . . . . . . . Level 5 . | . . . . . . . . High Security . | . . . . . . . . Max Security . | . . . . . . . . Squads Dispatched 17 | . . 2 5 2 . 2 6 Investigation 2 | . . . 1 . . . 1 Extermination 1 | . . . . . . . 1 Reinforcement 8 | . . 2 2 2 . 2 . Assault 2 | . . . 2 . . . . Garrison 4 | . . . . . . . 4 Intercept . | . . . . . . . . Searches Triggered . | . . . . . . . . Construction Impeded 1 | . . . . 1 . . . Haulers Reinforced . | . . . . . . . . Active Scanning Responses . | . . . . . . . . Cargo Convoy Interrupts 1 | . . . . . . . 1 Stealth | -11 -10 -9 -9 -8 -7 -7 -6 --------- Run | Yrd Mat Mat Sto Mat Fac DSF Fac Distress Signals 9 | . . . 6 1 . . 2 Communications Jammed . | . . . . . . . . Distress Signals . | . . . . . . . . Times Spotted 112 | . 10 2 41 17 . 8 34 Peak Tracking Total 15 | . 3 4 9 4 . 3 15 Tactical Retreats 6 | . . 1 2 . . 1 2 Traps | -11 -10 -9 -9 -8 -7 -7 -6 ------- Run | Yrd Mat Mat Sto Mat Fac DSF Fac Traps Triggered 6 | . 4 . 1 1 . . . Indirectly . | . . . . . . . . Trap Hack Attempts . | . . . . . . . . Triggered . | . . . . . . . . Disarmed . | . . . . . . . . Reprogrammed . | . . . . . . . . Reused . | . . . . . . . . Traps Extracted . | . . . . . . . . Installed . | . . . . . . . . Triggered . | . . . . . . . . Machines | -11 -10 -9 -9 -8 -7 -7 -6 ---------- Run | Yrd Mat Mat Sto Mat Fac DSF Fac Machines Disabled 7 | . . . 6 1 . . . Max in Single Turn 1 | . . . 1 1 . . . Machines Repaired . | . . . . . . . . Machines Dismantled . | . . . . . . . . Machines Sabotaged . | . . . . . . . . Overloaded Fab Kills . | . . . . . . . . Hacking | -11 -10 -9 -9 -8 -7 -7 -6 --------- Run | Yrd Mat Mat Sto Mat Fac DSF Fac Machines Accessed 19 | . 3 . 6 5 1 . 4 Terminals 16 | . 3 . 5 5 1 . 2 Fabricators . | . . . . . . . . Repair Stations . | . . . . . . . . Recycling Units 2 | . . . 1 . . . 1 Scanalyzers . | . . . . . . . . Garrison Access 1 | . . . . . . . 1 Total Hacks 49 | . 9 . 10 18 2 . 10 Successful 23 | . 6 . 6 7 1 . 3 Failed 26 | . 3 . 4 11 1 . 7 Catastrophic 3 | . . . . 3 . . . Database Lockouts . | . . . . . . . . Manual 39 | . 9 . 5 17 . . 8 Terminals 41 | . 9 . 9 18 2 . 3 Fabricators . | . . . . . . . . Repair Stations . | . . . . . . . . Recycling Units 6 | . . . 1 . . . 5 Scanalyzers . | . . . . . . . . Garrison Access 2 | . . . . . . . 2 Terminal Hacks 11 | . 3 . 3 3 1 . 1 Robot Analysis 2 | . 2 . . . . . . Open Door 2 | . . . 2 . . . . Open DSF 2 | . . . . . 1 . 1 Emergency Access Points 1 | . . . . 1 . . . Terminal Index 1 | . 1 . . . . . . Alert Level 2 | . . . 1 1 . . . Unreport Threat 1 | . . . . 1 . . . Fabricator Hacks . | . . . . . . . . Repair Station Hacks . | . . . . . . . . Recycling Unit Hacks . | . . . . . . . . Scanalyzer . | . . . . . . . . Garrison Access Hacks . | . . . . . . . . Unauthorized Hacks 12 | . 3 . 3 4 . . 2 Terminals 10 | . 3 . 2 4 . . 1 Assimilate 1 | . . . . 1 . . . Botnet 9 | . 3 . 2 3 . . 1 Fabricators . | . . . . . . . . Repair Stations . | . . . . . . . . Recycling Units 2 | . . . 1 . . . 1 Reject 2 | . . . 1 . . . 1 Scanalyzers . | . . . . . . . . Garrison Access . | . . . . . . . . Data Cores Recovered . | . . . . . . . . Used . | . . . . . . . . Hacking Detections 14 | . 3 . 3 5 . . 3 Full Trace Events 2 | . . . . 1 . . 1 Feedback Events . | . . . . . . . . Feedback Blocked . | . . . . . . . . Robot Schematics Acquired . | . . . . . . . . Robots Built . | . . . . . . . . Authchips . | . . . . . . . . Time . | . . . . . . . . Total Robot Build Rating . | . . . . . . . . Part Schematics Acquired . | . . . . . . . . Parts Built . | . . . . . . . . Authchips . | . . . . . . . . Time . | . . . . . . . . Total Part Build Rating . | . . . . . . . . Parts Repaired . | . . . . . . . . Time . | . . . . . . . . Parts Recycled . | . . . . . . . . Recycled Matter . | . . . . . . . . Retrieved Matter . | . . . . . . . . Retrieved Components . | . . . . . . . . Parts Scanalyzed . | . . . . . . . . Part Schematics Acquired . | . . . . . . . . Parts Damaged . | . . . . . . . . Bothacking | -11 -10 -9 -9 -8 -7 -7 -6 ------------ Run | Yrd Mat Mat Sto Mat Fac DSF Fac Used RIF Installer . | . . . . . . . . Robots Hacked . | . . . . . . . . Non-combat . | . . . . . . . . Combat . | . . . . . . . . Robot Hacks Applied . | . . . . . . . . Relay Couplers Released . | . . . . . . . . Fabnet Peak Effective % . | . . . . . . . . Robots Rewired . | . . . . . . . . Allies Hacked . | . . . . . . . . Hacks Repelled . | . . . . . . . . Allies | -11 -10 -9 -9 -8 -7 -7 -6 -------- Run | Yrd Mat Mat Sto Mat Fac DSF Fac Total Allies 13 | . . . 12 1 . . . Largest Group 10 | . . . 10 10 . . . Highest-Rated Group 88 | . . . 88 88 . . . Highest-Rated Ally 31 | . . . 31 16 . . . Total Orders 1 | . . . . 1 . . . ROAM 1 | . . . . 1 . . . Ally Attacks 29 | . . . 6 23 . . . Total Damage 302 | . . . 124 178 . . . Kills 3 | . . . 1 2 . . . Allies Corrupted . | . . . . . . . . Allies Melted . | . . . . . . . . Intel | -11 -10 -9 -9 -8 -7 -7 -6 ------- Run | Yrd Mat Mat Sto Mat Fac DSF Fac Robot Analysis Total 2 | . 2 . . . . . . Derelict Logs Recovered . | . . . . . . . . Drone Launches . | . . . . . . . . Drone Recoveries . | . . . . . . . . Exploration | -11 -10 -9 -9 -8 -7 -7 -6 ------------- Run | Yrd Mat Mat Sto Mat Fac DSF Fac Turns Passed 4740 | 47 459 239 1540 1019 125 208 1103 Spaces Moved 2947 | 32 450 151 1016 611 97 93 497 Core 46 | 10 4 . 19 . . . 13 Treads . | . . . . . . . . Legs 982 | 22 34 . . 252 97 93 484 Wheels 418 | . . . 340 78 . . . Hover 1353 | . 412 151 509 281 . . . Flight 148 | . . . 148 . . . . Fastest Speed 34 | 50 56 56 34 52 130 120 50 Average Speed 95 | 109 68 106 74 114 130 127 120 Slowest Speed 350 | 190 200 180 350 300 130 130 190 Overloaded Moves . | . . . . . . . . Propulsion Burnouts . | . . . . . . . . Robots Hopped . | . . . . . . . . Cave-ins Triggered . | . . . . . . . . Exploration Rate (%) 31 | 3 55 9 76 42 2 55 13 Regions Visited 7 Branch Regions 1 Pre-discovered Areas . | . . . . . . . . Known Exits Taken 3 | . 1 . . 1 1 . . Unknown Exits Taken 3 | 1 . 1 1 . . . . Scrap Searched . | . . . . . . . . Spaces Dug 7 | . . 4 3 . . . . Terrain Destroyed 214 | . . 4 62 148 . . . Melee . | . . . . . . . . Projectile 7 | . . 4 3 . . . . AOE 207 | . . . 59 148 . . . Terrain Rammed . | . . . . . . . . Walls Destroyed . | . . . . . . . . Machines Disabled . | . . . . . . . . Actions | -11 -10 -9 -9 -8 -7 -7 -6 --------- Run | Yrd Mat Mat Sto Mat Fac DSF Fac Total 4505 | 41 554 215 1646 873 96 162 918 Wait 1056 | . 39 50 402 184 . 38 343 Move 2940 | 31 449 150 1015 610 96 92 497 Hop . | . . . . . . . . Pick Up 59 | 4 11 . 28 7 . 5 4 Fast Attach 59 | 6 6 3 22 11 . 2 9 Attach 43 | . 6 3 20 5 . 2 7 Detach 29 | . 6 2 14 4 . . 3 Swap 16 | . . . 7 4 . 3 2 Drop 69 | . 8 1 33 15 . 8 4 Fire 222 | . 28 6 102 32 . 12 42 Melee 5 | . . . . . . . 5 Ram 5 | . 1 . 3 1 . . . Kick 2 | . . . . . . . 2 Crush . | . . . . . . . . Escape Stasis . | . . . . . . . . Rewire . | . . . . . . . . Trap . | . . . . . . . . Miscellaneous . | . . . . . . . . Route ------- -11/Scrapyard -10/Materials (discovered 2 exits: *Mat / *Min) -9/Materials -9/Storage -8/Materials -7/Factory -7/DSF -6/Factory History --------- Turn | Location | Event 2 | -11/Scrapyard | Met Revision 17 21 | -11/Scrapyard | Discovered new exit (range 15) 48 | -11/Scrapyard | Entered Materials 230 | -10/Materials | Discovered new exit (range 10) 238 | -10/Materials | Identified exit to Materials 329 | -10/Materials | Build established: Mutant 379 | -10/Materials | Discovered new exit (range 16) 447 | -10/Materials | Identified exit to Mines 507 | -10/Materials | Entered another Materials area 507 | -9/Materials | Evolved 2 slots: Propulsion x1, Utility x1 713 | -9/Materials | Discovered new exit (range 9) 746 | -9/Materials | Entered Storage 1881 | -9/Storage | Met a pair of Derelict thieves 1977 | -9/Storage | Core integrity fell below 50% 1988 | -9/Storage | Core integrity fell below 20% 2025 | -9/Storage | Destroyed 14 combat bots 2034 | -9/Storage | Lost 7 parts (1p4u2w) 2140 | -9/Storage | Discovered new exit (range 15) 2150 | -9/Storage | Assisted by bots powering up and referring to "LRC-V3" 2286 | -9/Storage | Entered Materials 2286 | -8/Materials | Accompanied by 10 allies 2286 | -8/Materials | Evolved 2 slots: Utility x2 2418 | -8/Materials | Lost 6 allies 3036 | -8/Materials | Build established: Skirmisher 3117 | -8/Materials | Discovered new exit (range 16) 3302 | -8/Materials | Identified exit to Factory 3305 | -8/Materials | Entered Factory 3305 | -7/Factory | Evolved 2 slots: Power x1, Utility x1 3429 | -7/Factory | Identified exit to DSF 3430 | -7/Factory | Entered DSF 3502 | -7/DSF | Additional patrols routed to DSF 3563 | -7/DSF | Discovered new exit (range 16) 3637 | -7/DSF | Identified exit to Factory 3638 | -7/DSF | Entered Factory 3638 | -6/Factory | Evolved 2 slots: Utility x1, Weapon x1 3664 | -6/Factory | Lost 3 parts (1u2w) 4224 | -6/Factory | Build established: Assassin 4372 | -6/Factory | Garrison activated, responded to threat 4684 | -6/Factory | Cargo convoy interrupted 4685 | -6/Factory | Garrison activated, responded to threat 4710 | -6/Factory | Core integrity fell below 50% 4734 | -6/Factory | Released all parts (5) 4735 | -6/Factory | Core integrity fell below 20% 4737 | -6/Factory | Spotted B-75 Beast 4741 | -6/Factory | Destroyed by B-75 Beast with Magnetic Acceleration Cannon Last Messages --------------- 04711_ Slug penetrates A-15 Conveyor. 04712_ Slug penetrates H-66 Slayer. 04712_ Penetrated by Slug. 04712_ Imp. Field Recycling Unit destroyed. 04721_ Kicked K-01 Serf. 04722_ K-01 Serf sends out distress signal. 04724_ K-01 Serf destroyed. 04727_ Imp. Carbon-fiber Leg destroyed. 04728_ Slug penetrates P-60 Hacker. 04730_ P-60 Hacker suffers critical hit (Destroy). 04730_ P-60 Hacker destroyed. 04731_ X-62 Marksman destroyed. 04733_ W-25 Informer sends out distress signal. 04734_ Imp. Carbon-fiber Leg destroyed. 04734_ Released Hacking Suite. 04734_ Released Med. Storage Unit. 04734_ Released Signal Interpreter. 04734_ Released Target Analyzer. 04734_ Released Machine Analyzer. 04734_ Penetrated by Slug. Map ----- +----------------------------------------------------+ | ?????????????????????? | | ?????????????????????? ! ###### ############ | | ????????????????????????????????????#/############ | | ????????????????????????????????????# """ """ # | | ????????????????????????????????????# """ """ # | | ????????????????????????????????????# """ """ # | | ????????????????????????????????????# + | | ????????????????????????????????????# # | | ????????????????????????????????################## | | ?????????????????????"""?"""???? # # | | ?????????????????????"""?"""???? # # | | ?????????????????????"""?"""??? """ """ # # | | ??????????????????????????????# """ """ # " | | ?????????????????????"""?"""??# """ """ # + | | ?????????????????????"""?"""??# + # | | ?????????????????????"""?"""??# """ """ # # | | ??????????????????????????????# """ """ # # | | ?????????????????????"""?"""??# """ """ # # | | ?????????????????????"""?"""??# ########## | | ?????????????????????"""?"""??# #????????# | | ??????????????????????????????# #????????# | | ???????????????????#####+###### """ """ #????????# | | ?????????????####### ## """G""" #????????# | | ????????????? k ##########+########## | | ?????????????? k g !%! | | ????????"""""???? " " " "@w ggp **=[ | | ????????""T""???? " " " " g % * | | ????????????????? " " " " % | | ????????????????? " " " " *! | | ????????????????? " " " " ###+################# | | ?????""""""?????? " " " " # ?????????????#! | | ?????""""""???????" " " " ### ?????????????# | | ?????""""""???????" " " " #?#! ????????????# | | ?????""""""???????" " " " ;?# ????????????# | | ?????????????????? #?# ???????????# | | ????????????????? " " ===BB#?# !???????????# | | ??????????????????" " ===BB#?# !!??????????# | | ??????????????????" " == ?# !!??????????# | | ??????????????????" " ?# ?????????# | | ??????????????????" " #?#########?????????# | | ??????????????????" " #???????????????????# | | ??????????????????" " #???????????????????# | | ??????????????????" " =[ ????????????????????### | | ??????????????????"?" ![ ??????????????????????? | | ???????????????????? ![ ??????????????????????? | | ??????????????????"?"?" ??????????????????????? | | ??????????????????"?"?"? ????"""?"""???????????? | | ??????????????????"?"?"????????"""?"""???????????? | | ??????????????????"?"?"????????"""?"""???????????? | | ??????????????????"?"?"??????????????????????????? | +----------------------------------------------------+ Best States ------------- Heat Dissipation 37 Energy Generation 24 Energy Capacity 330 Matter Stores 300 Matter Capacity 300 Sight Range 18 Robot Scan Range 14 Terrain Scan Density 10 ECM Strength 1 Armor Coverage 375 Resistance: EM 15 Phase Shifting 5 Evasion (%) 63 Target Analysis 5 Offensive Hacking 10 Item Schematics ----------------- None Robot Schematics ------------------ None Fabricated ------------ Nothing Alien Tech Used ----------------- None Achievements -------------- None Challenges ------------ None Game ------ Seed DiametricPortableActivator Manual? 0 Play Time 01:26:39 Cumulative 46.0 hours Start 2024.06.24 @ 22:11:57 End 2024.06.25 @ 18:50:35 Sessions 3 Manual Loads 0 Difficulty Rogue Special Mode None Game No. 41 Rogue 41 Adventurer 0 Explorer 0 Win Type - Total 0 Types 0/0/0/0/0/0/0/0/0 Lore% 10 Gallery% 38 Achievement% 33 Wizard Run 0 Options --------- Layout 0 ASCII 0 Keyboard 1 Movement Numpad Keybinds 0 Fullscreen 2 Font 18/SmallcapsGlow Map View 76x50 Zoom Use 0% Tactical HUD 1 Map Filters NONE Filters NONE Steam 1 RUN: 79c9795b-165a-479a-b162-6cad83446765